Cogmind - Beta 13 X1 @@@ ROGUE MODE // 2023.08.18 @ 08:17:52 Player: VR-DUX Result: Destroyed by S-43 Plague with Heavy Machine Gun Performance ------------- Evolutions (9) 4500 Regions Visited (27) 5400 Robots Destroyed (169) 845 Value Destroyed (4373) 4373 Prototype IDs (53) 1060 Alien Tech Used (0) 0 Bonus (4662) 4662 TOTAL SCORE: 20840 Bonus ------- High Alert Combat Kills 58 Follower Combat Kills 756 Aligned with FarCom 300 Met Data Miner 300 Met Imprinter 300 Met Warlord at Base 500 MAIN.C Attacked Warlord 500 Met Warlord at Research 2000 Friendly Fire -52 Cogmind --------- Core Integrity 0/1600 Matter 300/300 Energy 100/100 System Corruption 31% Temperature Cool (0) Movement Core (50) Location -1/Access Parts ------- > --- POWER (2) -------- (None) > --- PROPULSION (9) --- (None) > --- UTILITY (12) ----- (None) > --- WEAPON (2) ------- (None) > --- INVENTORY (5) ---- Centrium Leg Advanced Target Analyzer Enhanced Nova Cannon Peak State ------------ > --- POWER ------------ Micro Antimatter Reactor Light Quantum Reactor > --- PROPULSION ------- Improved Surge Thruster Nuclear Pulse Array Field Propulsion Array Field Propulsion Array Impulse Thruster Array > --- UTILITY ---------- Structural Scanner Machine Analyzer Enhanced Optical Array Stasis Canceller Improved Transmission Jammer Advanced ECM Suite Cloaking Device Improved Medium Armor Plating Antimissile System Makeshift Hacking Suite Makeshift Hacking Suite System Mapper > --- WEAPON ----------- Vortex Driver Phasing Sabre > --- INVENTORY -------- Light Quantum Reactor Micro-nuke Launcher Sapper Charge Deploy-a-Sentry [Rating: 154] Favorites ----------- Power Micro Nuclear Core Engine Light Deuterium Engine Power Core Micro Nuclear Core Reactor Micro Antimatter Reactor Propulsion Light Treads Treads Light Treads Leg Aluminum Leg Hover Unit Makeshift Hover Unit Flight Unit Improved Surge Thruster Utility Hacking Suite Device Improved Heat Sink Storage Large Storage Unit Processor Machine Analyzer Hackware Hacking Suite Protection Core Shielding Weapon Gauss Rifle Energy Gun Improved EM Shotgun Energy Cannon Beam Cannon Ballistic Gun Gauss Rifle Ballistic Cannon Gauss Cannon Launcher Advanced EMP Blaster Special Weapon RU-N14's Throwing Claymores Impact Weapon Power Maul Slashing Weapon Phasing Sabre Piercing Weapon Heavy Pick Build | -11 -10 -10 -10 -9 -8 -7 -7 -7 -7 -6 -6 -6 -6 -6 -6 -6 -5 -5 -5 -4 -4 -4 -4 -3 -3 -2 -1 ------- Run | Jun Mat Min Exi Min Mat Fac Low Low Dat Pro Fac Was Fac Low Low Zio Pro Fac Ext Fac Upp Upp War Pro Res Res Acc Slots Evolved 18 | . . . . . 4 2 . . . . 2 . . . . . . 2 . 2 . . . . 2 2 2 Power 1 | . . . . . . . . . . . . . . . . . . . . . . . . . 1 . . Propulsion 7 | . . . . . 1 1 . . . . 1 . . . . . . 1 . 1 . . . . . 1 1 Utility 10 | . . . . . 3 1 . . . . 1 . . . . . . 1 . 1 . . . . 1 1 1 Weapon . | . . . . . . . . . . . . . . . . . . . . . . . . . . . . Parts Attached 229 | 2 22 7 1 1 39 27 7 4 2 4 15 1 15 1 . 7 . 5 . 13 . . 11 2 7 8 28 Power 25 | . 6 . . . 7 . 1 . . 1 2 . . 1 . . . . . . . . . 1 1 1 4 Engine 10 | . 5 . . . 4 . . . . 1 . . . . . . . . . . . . . . . . . Core 10 | . 1 . . . 3 . 1 . . . 2 . . 1 . . . . . . . . . 1 . . 1 Reactor 5 | . . . . . . . . . . . . . . . . . . . . . . . . . 1 1 3 Propulsion 58 | . 5 2 . . 15 6 . 1 . 3 5 . 4 . . 1 . 3 . 6 . . . . 1 2 4 Treads 31 | . 5 2 . . 14 5 . 1 . 3 . . . . . . . 1 . . . . . . . . . Leg 3 | . . . . . . 1 . . . . . . . . . . . . . . . . . . . . 2 Wheel . | . . . . . . . . . . . . . . . . . . . . . . . . . . . . Hover 1 | . . . . . . . . . . . . . . . . 1 . . . . . . . . . . . Flight 23 | . . . . . 1 . . . . . 5 . 4 . . . . 2 . 6 . . . . 1 2 2 Utility 63 | 1 4 1 . . 5 4 2 2 . . 6 1 7 . . 1 . 1 . 3 . . 7 . 1 4 13 Device 37 | 1 1 . . . 1 2 2 . . . 6 1 4 . . . . . . 3 . . 3 . . 2 11 Storage 5 | . 3 . . . 1 . . . . . . . . . . . . . . . . . . . . . 1 Processor 2 | . . . . . . . . . . . . . 1 . . . . . . . . . . . 1 . . Hackware 12 | . . . . . 3 2 . . . . . . . . . 1 . 1 . . . . 4 . . 1 . Protection 7 | . . 1 . . . . . 2 . . . . 2 . . . . . . . . . . . . 1 1 Artifact . | . . . . . . . . . . . . . . . . . . . . . . . . . . . . Weapon 83 | 1 7 4 1 1 12 17 4 1 2 . 2 . 4 . . 5 . 1 . 4 . . 4 1 4 1 7 Energy Gun 15 | 1 2 1 . . 5 2 . . . . . . . . . . . . . 1 . . 1 . 1 . 1 Energy Cannon 13 | . 1 1 1 . 1 1 . . . . . . . . . . . . . . . . 1 . 2 1 4 Ballistic Gun 12 | . 3 . . . . . . . 1 . 1 . 3 . . 2 . 1 . 1 . . . . . . . Ballistic Cannon 5 | . . . . . 1 1 1 . 1 . . . . . . . . . . . . . 1 . . . . Launcher 19 | . 1 . . 1 4 6 3 1 . . . . 1 . . . . . . . . . . . . . 2 Special Weapon 1 | . . . . . . . . . . . . . . . . 1 . . . . . . . . . . . Impact Weapon 5 | . . . . . . 3 . . . . 1 . . . . 1 . . . . . . . . . . . Slashing Weapon 12 | . . 2 . . 1 4 . . . . . . . . . 1 . . . 2 . . . 1 1 . . Piercing Weapon 1 | . . . . . . . . . . . . . . . . . . . . . . . 1 . . . . Special Melee Weapon . | . . . . . . . . . . . . . . . . . . . . . . . . . . . . Unidentified Prototypes 12 | . 1 . . . 4 . . . . . . . 1 . . 1 . . . . . . 5 . . . . Corrupted Parts 7 | . . . . . 3 . . 1 . 2 . . . . . . . . . . . . . 1 . . . System Corruption 57 | . . . . . 20 . . 10 . 20 . . . . . . . . . . . . . 7 . . . Parts Lost 63 | . 1 . . . 11 . 4 2 . 9 2 . . 1 . . . 1 1 1 . . . 3 4 . 23 Power 8 | . . . . . 1 . . . . 1 . . . . . . . . . . . . . 1 1 . 4 Propulsion 24 | . . . . . 6 . . 1 . 4 1 . . 1 . . . 1 . 1 . . . 1 . . 8 Utility 18 | . . . . . 1 . 2 1 . 2 1 . . . . . . . 1 . . . . 1 2 . 7 Weapon 13 | . 1 . . . 3 . 2 . . 2 . . . . . . . . . . . . . . 1 . 4 Highest Loss Streak 17 | . 1 . . . 6 . 2 2 . 6 2 . . 1 . . . 1 1 1 . . . 2 4 . 17 To Critical Strikes 1 | . . . . . . . . . . . . . . . . . . . . . . . . . . . 1 Average Slot Usage (%) 86 | . 97 90 89 100 90 96 85 90 81 82 73 80 85 88 86 91 100 92 82 85 89 89 88 79 59 69 61 Engine 4 | . 10 14 14 14 5 7 2 . . 2 . . . . . . . . . . . . . . . . . Core 2 | . 3 . . . 3 . 4 7 7 3 6 6 6 6 6 6 6 5 5 5 5 5 5 4 . . . Treads 15 | . 24 28 28 28 24 26 23 22 23 21 10 . . . . . . . . . . . . . . . . Flight 8 | . . . . . . . . . . . 5 33 33 27 26 26 26 27 23 24 26 26 26 21 19 20 14 Device 9 | . 14 4 . . 7 7 6 7 7 7 20 13 11 13 13 13 13 11 11 18 21 21 15 9 4 4 12 Storage 6 | . 14 14 14 14 9 7 7 7 7 7 5 . . . . . . . . . . . . . . . 1 Processor 1 | . . . . . . . . . . . . . 2 6 6 6 6 5 5 5 5 5 5 5 4 8 6 Hackware 16 | . . . . . 20 28 24 20 15 15 13 13 13 13 13 15 20 23 23 21 21 21 26 31 21 19 10 Protection 3 | . . 9 14 14 3 . . 8 15 8 . . 4 7 6 6 6 5 . . . . . . . . 3 Energy Gun 2 | . 9 . . . 7 1 . . . . . . . . . . . . . . 5 5 4 1 . . . Energy Cannon 2 | . 5 4 4 14 2 2 1 . . . . . . . . . . . . . . . 2 5 1 4 3 Ballistic Gun 2 | . 11 9 . . . . . . 1 6 5 6 6 6 6 4 6 4 5 4 . . . . . . . Ballistic Cannon 1 | . . . . . 2 3 6 7 2 6 . . . . . . . . . . . . . . . . . Launcher 1 | . . . . 11 4 . 4 6 1 . . . . . . . . . . . . . . . . . . Impact Weapon 1 | . . . . . . 4 . . . . 6 6 6 6 6 6 6 5 5 1 . . . . . . . Slashing Weapon 1 | . . 5 14 2 . 1 . . . . . . . . . 1 . . . 3 5 5 2 . 4 4 3 Naked Turns 2 | . . . . . . . . . . . . . . . . . . . . . . . . . . . 2 Heaviest Build 65 | 15 31 31 31 32 38 40 40 55 55 52 46 23 25 25 19 20 19 19 19 22 22 22 34 34 26 56 65 Greatest Support 180 | 20 40 40 40 40 60 118 118 118 110 113 90 23 25 25 19 19 19 35 28 45 44 44 44 44 46 59 180 Greatest Overweight (x) 7 | . . . . . 1 . . . . . 1 . 1 . . 1 . . 5 . . . 7 . 1 . 6 Average Overweight (x) . | . . . . . . . . . . . . . . . . . . . . . . . . . . . . Largest Inventory Capacity 15 | 8 15 15 15 15 15 15 15 15 15 15 15 5 5 5 5 5 5 5 5 5 5 5 5 5 5 5 10 Average Capacity 11 | 8 12 15 15 15 15 15 15 15 15 15 13 5 5 5 5 5 5 5 5 5 5 5 5 5 5 5 6 Most Carried 15 | 8 15 15 15 15 15 15 15 15 15 14 15 5 5 5 5 5 5 5 5 5 5 5 5 5 5 5 10 Average Carried 10 | 6 11 14 14 14 13 14 13 13 14 13 7 5 4 5 5 4 5 5 5 4 5 5 4 4 4 4 5 Final Capacity 15 | 8 15 15 15 15 15 15 15 15 15 15 5 5 5 5 5 5 5 5 5 5 5 5 5 5 5 5 5 Final Carried 15 | 8 14 15 15 14 14 15 13 15 14 10 5 5 5 5 5 5 5 5 5 5 5 5 5 5 5 5 3 Class Distribution -------------------- 38% | Hacker-Mutant 21% | Mutant 11% | Hacker-Sprinter 7% | Hacker-Scout 7% | Hacker-Ninja 6% | Scavenger-Mutant 3% | Wizard-Sprinter Dominant Class ---------------- Mutant | -10/Materials Mutant | -10/Mines Mutant | -10/Exiles Mutant | -9/Mines Hacker-Mutant | -8/Materials Hacker-Mutant | -7/Factory Hacker-Mutant | -7/Lower Caves Hacker-Mutant | -7/Lower Caves Hacker-Mutant | -7/Data Miner Hacker-Mutant | -6/Proximity Caves Hacker-Mutant | -6/Factory Hacker-Sprinter | -6/Waste Hacker-Sprinter | -6/Factory Hacker-Sprinter | -6/Lower Caves Hacker-Sprinter | -6/Lower Caves Hacker-Sprinter | -6/Zion Hacker-Sprinter | -5/Proximity Caves Hacker-Scout | -5/Factory Hacker-Scout | -5/Extension Hacker-Ninja | -4/Factory Hacker-Sprinter | -4/Upper Caves Hacker-Sprinter | -4/Upper Caves Wizard-Sprinter | -4/Warlord Wizard-Sprinter | -3/Proximity Caves Hacker-Scout | -3/Research Wizard-Scout | -2/Research Hacker-Ninja | -1/Access Resources | -11 -10 -10 -10 -9 -8 -7 -7 -7 -7 -6 -6 -6 -6 -6 -6 -6 -5 -5 -5 -4 -4 -4 -4 -3 -3 -2 -1 ----------- Run | Jun Mat Min Exi Min Mat Fac Low Low Dat Pro Fac Was Fac Low Low Zio Pro Fac Ext Fac Upp Upp War Pro Res Res Acc Matter Collected 4243 | 233 365 60 . 89 924 652 184 224 . 174 78 . 358 . . 24 . 82 147 96 29 . 110 10 . 124 280 Remotely . | . . . . . . . . . . . . . . . . . . . . . . . . . . . . Salvage Created 6263 | 128 768 . . 75 2026 568 291 220 . 167 78 . 368 . . . . 86 133 31 . . . . . 150 1174 Parts 288 | 5 55 . . 11 105 24 5 3 . 5 7 . 1 . . . . 2 1 6 . . . . . 2 56 Haulers Intercepted 11 | . 2 . . . 5 . . . . . . . 1 . . . . 1 . . . . . . . . 2 Recyclers Shooed 16 | . 3 . . . 5 2 . . . . 3 . . . . . . 1 . . . . . . . . 2 Parts Field Recycled . | . . . . . . . . . . . . . . . . . . . . . . . . . . . . Retrieved Matter . | . . . . . . . . . . . . . . . . . . . . . . . . . . . . Parts Self-Destructed 18 | . . . . . . . 8 4 . 5 . . . 1 . . . . . . . . . . . . . Prevented 1 | . . . . . . . 1 . . . . . . . . . . . . . . . . . . . . Kills | -11 -10 -10 -10 -9 -8 -7 -7 -7 -7 -6 -6 -6 -6 -6 -6 -6 -5 -5 -5 -4 -4 -4 -4 -3 -3 -2 -1 ------- Run | Jun Mat Min Exi Min Mat Fac Low Low Dat Pro Fac Was Fac Low Low Zio Pro Fac Ext Fac Upp Upp War Pro Res Res Acc Combat Hostiles Destroyed 87 | . 11 . . 7 32 5 7 5 . 5 3 . . . . . . . . . . . . . . . 12 Guns 22 | . 10 . . . 9 . . . . . 3 . . . . . . . . . . . . . . . . Cannons 32 | . 1 . . 4 8 3 4 2 . 5 . . . . . . . . . . . . . . . . 5 AOE 29 | . . . . 3 13 2 3 1 . . . . . . . . . . . . . . . . . . 7 Classes Destroyed 12 | 2 7 . . . 1 1 . . . . . . . . . . . . . . . . . . . . 1 Worker 14 | . 3 . . . 3 5 . . . . . . 2 . . . . . . . . . . . . . 1 Builder 19 | . 2 . . . 7 5 . . . . . . 3 . . . . . . 1 . . . . . . 1 Tunneler 6 | 2 2 . . . . 2 . . . . . . . . . . . . . . . . . . . . . Hauler 11 | . 2 . . . 5 . . . . . . . 1 . . . . 1 . . . . . . . . 2 Recycler 21 | 1 2 . . . 7 3 . . . . . . 1 . . . . . 1 . . . . . . 1 5 Operator 6 | . 2 . . . 1 1 . . . . . . . . . . . . . 1 . . . . . 1 . Watcher 6 | . 1 . . . 3 . . . . . . . 1 . . . . . . . . . . . . . 1 Swarmer 24 | . 3 . . 7 6 . 1 1 . 2 3 . . . . . . . . . . . . . . . 1 Cutter 3 | . . . . . . . . . . . . . . . . . . . . . . . . . . . 3 Grunt 41 | . 8 . . . 22 . 5 3 . 3 . . . . . . . . . . . . . . . . . Sentry 9 | . . . . . 4 3 1 1 . . . . . . . . . . . . . . . . . . . Programmer 10 | . . . . . . 2 . . . . . . . . . . . . . . . . . . . . 8 Best Kill Streak 9 | 3 4 . . 3 9 3 3 3 . 3 3 . 4 . . . . 1 1 1 . . . . . 2 8 Combat Bots Only 5 | . 3 . . 3 4 1 3 3 . 3 3 . . . . . . . . . . . . . . . 5 Max Kills in Single Turn 3 | 1 1 . . 1 2 1 2 1 . 1 1 . 1 . . . . 1 1 1 . . . . . 1 3 Gunslinging . | . . . . . . . . . . . . . . . . . . . . . . . . . . . . Exploded 3 | . . . . 1 2 1 2 1 . . . . . . . . . . . . . . . . . . 3 Melee . | . . . . . . . . . . . . . . . . . . . . . . . . . . . . Uniques/NPCs Destroyed . | . . . . . . . . . . . . . . . . . . . . . . . . . . . . Combat | -11 -10 -10 -10 -9 -8 -7 -7 -7 -7 -6 -6 -6 -6 -6 -6 -6 -5 -5 -5 -4 -4 -4 -4 -3 -3 -2 -1 -------- Run | Jun Mat Min Exi Min Mat Fac Low Low Dat Pro Fac Was Fac Low Low Zio Pro Fac Ext Fac Upp Upp War Pro Res Res Acc Damage Taken 14817 | 38 638 . . 134 1964 723 471 377 . 1202 239 . 49 142 32 . 45 174 234 131 16 . 36 306 373 29 7464 Core 2817 | . 205 . . 32 251 120 80 60 . 129 44 . . . 17 . . 23 77 18 . . . 59 86 . 1616 Absorbed by Shields . | . . . . . . . . . . . . . . . . . . . . . . . . . . . . Redirected to Shielding 196 | . . . . 6 8 . . . . . . . . 14 4 . 7 39 8 . . . . . . . 110 Regen/Repaired (Parts) 354 | . 120 . . . . 66 . . . . . . . . . 158 . . . . . . 10 . . . . Core Remaining (%) 74 | 100 . . . 5 54 . . . . 44 . . . . . . 92 . 90 . . . . 93 93 100 . Volleys Fired 513 | 18 82 1 . 12 196 69 19 22 . 18 22 . 3 . . . . 3 21 . . . . . 6 . 21 Largest 2 | 2 2 1 . 1 1 1 2 1 . 1 1 . 1 . . . . 1 1 . . . . . 1 . 1 Hottest 120 | 70 80 20 . 60 65 80 84 48 . 48 28 . 28 . . . . 28 28 . . . . . 100 . 120 Shots Fired 551 | 25 110 2 . 12 196 68 22 22 . 17 22 . 3 . 1 . . 3 21 . . . . . 6 . 21 Gun 247 | 25 91 1 . . 69 5 . . . . 22 . 3 . 1 . . 3 21 . . . . . 4 . 2 Cannon 219 | . 18 1 . 7 90 47 12 11 . 17 . . . . . . . . . . . . . . 2 . 14 Launcher 85 | . 1 . . 5 37 16 10 11 . . . . . . . . . . . . . . . . . . 5 Special . | . . . . . . . . . . . . . . . . . . . . . . . . . . . . Kinetic 222 | 7 44 1 . . 49 34 9 11 . 17 22 . 3 . 1 . . 3 21 . . . . . . . . Thermal 135 | 7 45 1 . 7 51 18 3 . . . . . . . . . . . . . . . . . . . 3 Explosive 54 | . 1 . . 5 26 13 4 . . . . . . . . . . . . . . . . . . . 5 Electromagnetic 123 | 11 20 . . . 70 3 6 11 . . . . . . . . . . . . . . . . . . 2 Entropic 17 | . . . . . . . . . . . . . . . . . . . . . . . . . 6 . 11 Robot Hit Streak 15 | 8 11 . . 3 10 5 4 8 . 15 8 . 9 . . . . 1 6 . . . . . . . 8 Robot Miss Streak 4 | 2 3 . . 1 4 2 2 1 . 1 4 . 1 . . . . 1 2 . . . . . . . 4 Penetration Max 1 | . . . . . . . . . . . 1 . . . . . . . . . . . . . . . 1 Secondary Targets 3 | . 3 . . . . . . . . . . . . . . . . . . . . . . . . . . Max Gunslinging Chain 1 | . 1 . . . . . . . . . . . . . . . . . . . . . . . . . . Shots Hit Robots 385 | 17 73 . . 6 129 50 11 11 . 14 13 . 9 . . . . 3 14 4 . . . . 1 3 27 Core Hits 254 | 3 36 . . 6 107 28 14 7 . 8 6 . . . . . . 1 7 1 . . . . . 1 29 Critical Kills . | . . . . . . . . . . . . . . . . . . . . . . . . . . . . Critical Parts Destroyed 7 | . . . . . . 2 . . . . . . 5 . . . . . . . . . . . . . . Critical Strikes 26 | 1 6 . . . 2 5 1 1 . . . . 5 . . . . . . . . . . . . . 5 Burn 5 | 1 4 . . . . . . . . . . . . . . . . . . . . . . . . . . Blast 7 | . . . . . 2 3 1 1 . . . . . . . . . . . . . . . . . . . Corrupt 2 | . 2 . . . . . . . . . . . . . . . . . . . . . . . . . . Smash 7 | . . . . . . 2 . . . . . . 5 . . . . . . . . . . . . . . Sever 1 | . . . . . . . . . . . . . . . . . . . . . . . . . . . 1 Sunder 4 | . . . . . . . . . . . . . . . . . . . . . . . . . . . 4 Melee Attacks 264 | . . . . . 2 19 . . . . 6 . 50 . . 2 7 26 1 39 . . . . 28 12 72 Impact 116 | . . . . . . 9 . . . . 6 . 50 . . 1 7 26 1 16 . . . . . . . Slashing 148 | . . . . . 2 10 . . . . . . . . . 1 . . . 23 . . . . 28 12 72 Piercing . | . . . . . . . . . . . . . . . . . . . . . . . . . . . . Sneak Attacks 29 | . . . . . . 8 . . . . . . 6 . . . . 1 1 2 . . . . 1 2 8 Combat Hostiles . | . . . . . . . . . . . . . . . . . . . . . . . . . . . . Follow-up Attacks . | . . . . . . . . . . . . . . . . . . . . . . . . . . . . Damage Inflicted 14834 | 348 1048 . . 330 4376 1759 740 704 . 398 299 . 810 . . . . 135 337 318 . . . . 85 259 2888 Guns 2574 | 222 787 . . . 911 34 . . . . 299 . 17 . . . . 43 256 . . . . . . . 5 Cannons 4182 | . 261 . . 127 1354 796 191 284 . 398 . . . . . . . . . . . . . . . . 771 Explosions 4618 | 126 . . . 203 2111 383 549 420 . . . . . . . . . . . . . . . . . . 826 Melee 3312 | . . . . . . 546 . . . . . . 793 . . . . 92 81 318 . . . . 85 259 1138 Ramming 148 | . . . . . . . . . . . . . . . . . . . . . . . . . . . 148 Kinetic 3229 | 38 390 . . . 797 567 140 284 . 398 299 . 17 . . . . 43 256 . . . . . . . . Thermal 1894 | 175 494 . . 127 740 263 51 . . . . . . . . . . . . . . . . . . . 44 Explosive 3345 | . . . . 203 1567 370 379 . . . . . . . . . . . . . . . . . . . 826 Electromagnetic 2179 | 135 164 . . . 1272 13 170 420 . . . . . . . . . . . . . . . . . . 5 Impact 1268 | . . . . . . 302 . . . . . . 793 . . . . 92 81 . . . . . . . . Slashing 2044 | . . . . . . 244 . . . . . . . . . . . . . 318 . . . . 85 259 1138 Piercing . | . . . . . . . . . . . . . . . . . . . . . . . . . . . . Entropic 727 | . . . . . . . . . . . . . . . . . . . . . . . . . . . 727 Highest Corruption 38 | . 2 2 2 2 21 6 7 18 18 38 . 5 5 6 6 6 2 . . . . . . 7 15 . 31 Average Corruption 6 | . 2 2 2 2 10 3 6 9 18 22 . 5 5 5 6 6 1 . . . . . . 7 15 . 8 Corruption Purged . | . . . . . . . . . . . . . . . . . . . . . . . . . . . . Corruption Blocked . | . . . . . . . . . . . . . . . . . . . . . . . . . . . . Effects 197 | . 1 5 4 10 9 30 20 15 5 31 . 1 15 2 4 1 1 . . . . . . 7 6 . 30 Message Errors 47 | . . 3 . 2 3 7 4 4 2 6 . . 5 . 1 1 . . . . . . . . 1 . 8 Matter Fused 45 | . . . 2 2 1 4 5 5 1 10 . . 6 . . . . . . . . . . 1 3 . 5 Heat Flow Errors 31 | . . . 1 2 2 6 3 2 . 5 . . 1 . 1 . . . . . . . . 3 1 . 4 Energy Discharges 20 | . . 1 . 1 1 4 5 . . 2 . . . 1 . . 1 . . . . . . 2 . . 2 Parts Rejected 2 | . . . . . . . . . . 1 . . . . . . . . . . . . . . . . 1 Parts Fused 1 | . . . . . 1 . . . . . . . . . . . . . . . . . . . . . . Data Loss (minor) 23 | . . . . 2 1 7 1 2 2 2 . 1 2 1 1 . . . . . . . . 1 . . . Data Loss (major) 8 | . . . . . . 1 1 . . 2 . . . . . . . . . . . . . . 1 . 3 Misfires 6 | . 1 1 . . . . 1 . . 1 . . . . 1 . . . . . . . . . . . 1 Alerts 7 | . . . 1 1 . . . 2 . . . . 1 . . . . . . . . . . . . . 2 Misdirections 3 | . . . . . . . . . . . . . . . . . . . . . . . . . . . 3 Weapon Failures 4 | . . . . . . 1 . . . 2 . . . . . . . . . . . . . . . . 1 Overload Shots . | . . . . . . . . . . . . . . . . . . . . . . . . . . . . Overflow Damage 1740 | 8 . . . 14 63 307 23 26 . 19 . . 701 . . . . . . 67 . . . . 15 131 366 Projectiles 236 | . . . . . 14 43 14 . . 19 . . . . . . . . . . . . . . . . 146 Explosions 206 | 8 . . . 14 49 . 9 26 . . . . . . . . . . . . . . . . . . 100 Melee 1298 | . . . . . . 264 . . . . . . 701 . . . . . . 67 . . . . 15 131 120 Knockbacks 31 | . . . . . 12 7 1 3 . 3 . . 4 . . . . . . . . . . . . . 1 Impact 6 | . . . . . . 1 . . . . . . 4 . . . . . . . . . . . . . 1 Kinetic 24 | . . . . . 12 6 1 3 . 2 . . . . . . . . . . . . . . . . . Secondary 1 | . . . . . . . . . . 1 . . . . . . . . . . . . . . . . . Self-Inflicted Damage 548 | 38 . . . 39 178 7 53 30 . . . . . . . . . . . . . . . . . . 203 Shots 16 | 1 . . . 1 6 1 3 2 . . . . . . . . . . . . . . . . . . 2 Rammed 38 | . . . . . . . . . . . . . . . . . . . . . . . . . . . 38 Targets Rammed 38 | . . . . . . . . . . . . . . . . . . . . . . . . . . . 38 Kicked . | . . . . . . . . . . . . . . . . . . . . . . . . . . . . Crushed . | . . . . . . . . . . . . . . . . . . . . . . . . . . . . Highest Temperature 310 | 36 190 24 199 275 212 261 198 246 . 213 8 2 267 16 250 . . 5 9 5 1 1 1 166 175 . 310 Average Temperature 54 | 15 48 13 105 73 52 103 73 95 . 79 3 2 52 8 158 . . 3 5 1 1 1 1 64 48 . 50 Received Heat Transfer 2401 | . 336 . . . 1008 138 192 160 . 363 . . 6 . . . . 27 78 21 . . . 27 . 9 36 Siege Activations . | . . . . . . . . . . . . . . . . . . . . . . . . . . . . Robots Corrupted 4 | . . . . . 2 . . 2 . . . . . . . . . . . . . . . . . . . Combat Hostiles 4 | . . . . . 2 . . 2 . . . . . . . . . . . . . . . . . . . Parts Fried 24 | 1 . . . . 10 4 . . . . . . 9 . . . . . . . . . . . . . . Impact Corruptions 26 | . . . . . . 7 . . . . . . 19 . . . . . . . . . . . . . . Robots Melted . | . . . . . . . . . . . . . . . . . . . . . . . . . . . . Combat Hostiles . | . . . . . . . . . . . . . . . . . . . . . . . . . . . . Parts Melted 5 | . 1 . . . 1 3 . . . . . . . . . . . . . . . . . . . . . Heat Transferred 4402 | 422 1517 . . 259 1543 524 100 . . . . . . . . . . . . . . . . . . . 37 Parts Sabotaged . | . . . . . . . . . . . . . . . . . . . . . . . . . . . . Parts Stolen . | . . . . . . . . . . . . . . . . . . . . . . . . . . . . Parts Stripped . | . . . . . . . . . . . . . . . . . . . . . . . . . . . . Power Chain Reactions 4 | 1 . . . . 2 . . 1 . . . . . . . . . . . . . . . . . . . Missiles Intercepted . | . . . . . . . . . . . . . . . . . . . . . . . . . . . . Alert | -11 -10 -10 -10 -9 -8 -7 -7 -7 -7 -6 -6 -6 -6 -6 -6 -6 -5 -5 -5 -4 -4 -4 -4 -3 -3 -2 -1 ------- Run | Jun Mat Min Exi Min Mat Fac Low Low Dat Pro Fac Was Fac Low Low Zio Pro Fac Ext Fac Upp Upp War Pro Res Res Acc Peak Influence 554 | 15 172 18 . 246 492 227 . . . . 111 53 179 . . . . 105 232 277 . . . . 75 88 554 Initial 107 | . 9 3 . . 17 107 . . . . . 38 37 . . . . . 51 7 . . . . 3 42 52 Average 122 | 4 79 14 . 103 230 86 . . . . 35 40 84 . . . . 48 165 93 . . . . 23 59 214 Maximum Alert Level 2 | . . . . 1 2 1 . . . . . . . . . . . . 1 1 . . . . . . 2 Low Security (%) 80 | 100 100 100 . 96 43 92 . . . . 100 100 100 . . . . 100 34 85 . . . . 100 100 58 Level 1 16 | . . . . 3 39 7 . . . . . . . . . . . . 65 14 . . . . . . 31 Level 2 3 | . . . . . 16 . . . . . . . . . . . . . . . . . . . . . 9 Level 3 . | . . . . . . . . . . . . . . . . . . . . . . . . . . . . Level 4 . | . . . . . . . . . . . . . . . . . . . . . . . . . . . . Level 5 . | . . . . . . . . . . . . . . . . . . . . . . . . . . . . High Security . | . . . . . . . . . . . . . . . . . . . . . . . . . . . . Max Security . | . . . . . . . . . . . . . . . . . . . . . . . . . . . . Squads Dispatched 29 | . 1 1 . . 5 8 . . . . 1 . 1 . . . . . 1 2 . . . . . 1 8 Investigation 4 | . 1 1 . . 1 1 . . . . . . . . . . . . . . . . . . . . . Extermination 8 | . . . . . . 3 . . . . 1 . . . . . . . . 1 . . . . . . 3 Reinforcement 16 | . . . . . 4 4 . . . . . . 1 . . . . . 1 1 . . . . . 1 4 Assault . | . . . . . . . . . . . . . . . . . . . . . . . . . . . . Garrison 1 | . . . . . . . . . . . . . . . . . . . . . . . . . . . 1 Intercept . | . . . . . . . . . . . . . . . . . . . . . . . . . . . . Searches Triggered . | . . . . . . . . . . . . . . . . . . . . . . . . . . . . Construction Impeded 6 | . . . . . 3 3 . . . . . . . . . . . . . . . . . . . . . Haulers Reinforced 1 | . . . . . . . . . . . . . . . . . . . . . . . . . . . 1 Active Scanning Responses . | . . . . . . . . . . . . . . . . . . . . . . . . . . . . Cargo Convoy Interrupts 1 | . . . . . . 1 . . . . . . . . . . . . . . . . . . . . . Stealth | -11 -10 -10 -10 -9 -8 -7 -7 -7 -7 -6 -6 -6 -6 -6 -6 -6 -5 -5 -5 -4 -4 -4 -4 -3 -3 -2 -1 --------- Run | Jun Mat Min Exi Min Mat Fac Low Low Dat Pro Fac Was Fac Low Low Zio Pro Fac Ext Fac Upp Upp War Pro Res Res Acc Distress Signals 19 | . 1 . . . 6 . . . . . . . . . . . . . 3 1 . . . . 2 3 3 Communications Jammed . | . . . . . . . . . . . . . . . . . . . . . . . . . . . . Distress Signals . | . . . . . . . . . . . . . . . . . . . . . . . . . . . . Times Spotted 290 | . 22 2 . 9 49 16 8 7 . 10 10 6 12 5 6 . 4 5 19 11 7 1 12 5 2 5 57 Peak Tracking Total 11 | . 4 2 . 4 5 3 4 3 . 4 5 6 3 7 10 . 4 4 10 7 5 3 8 4 3 3 11 Tactical Retreats 39 | . . . . . 6 1 1 1 . 2 2 . 3 . . . . . 2 5 1 . 1 1 2 . 11 Traps | -11 -10 -10 -10 -9 -8 -7 -7 -7 -7 -6 -6 -6 -6 -6 -6 -6 -5 -5 -5 -4 -4 -4 -4 -3 -3 -2 -1 ------- Run | Jun Mat Min Exi Min Mat Fac Low Low Dat Pro Fac Was Fac Low Low Zio Pro Fac Ext Fac Upp Upp War Pro Res Res Acc Traps Triggered 16 | . 1 . . . 1 3 2 . . . 1 . 1 1 . . . . 1 2 . . . . . . 3 Indirectly 2 | . . . . . . . 2 . . . . . . . . . . . . . . . . . . . . Trap Hack Attempts . | . . . . . . . . . . . . . . . . . . . . . . . . . . . . Triggered . | . . . . . . . . . . . . . . . . . . . . . . . . . . . . Disarmed 6 | . . . . . . 6 . . . . . . . . . . . . . . . . . . . . . Reprogrammed 4 | . . . . . . . . . . . . . . . . . . . 4 . . . . . . . . Reused 2 | . . . . . . . . . . . . . . . . . . . 2 . . . . . . . . Traps Extracted . | . . . . . . . . . . . . . . . . . . . . . . . . . . . . Installed . | . . . . . . . . . . . . . . . . . . . . . . . . . . . . Triggered 17 | . 1 . . . . 2 2 . . . . . . . . . . . 2 . . . 10 . . . . Time Bombs Activated 2 | . . . . . . . . . . . . . . . . . . . . . . . . . . . 2 Exploded 1 | . . . . . . . . . . . . . . . . . . . . . . . . . . . 1 Machines | -11 -10 -10 -10 -9 -8 -7 -7 -7 -7 -6 -6 -6 -6 -6 -6 -6 -5 -5 -5 -4 -4 -4 -4 -3 -3 -2 -1 ---------- Run | Jun Mat Min Exi Min Mat Fac Low Low Dat Pro Fac Was Fac Low Low Zio Pro Fac Ext Fac Upp Upp War Pro Res Res Acc Machines Disabled 11 | . . . . . 3 3 . . . . . . . . . . . 1 . . . . 1 . . . 3 Max in Single Turn 1 | . . . . . 1 1 . . . . . . . . . . . 1 . . . . . . . . 1 Garrison Access 5 | . . . . . . 1 . . . . . . 1 . . . . 1 . 1 . . . . . 1 . Machines Repaired . | . . . . . . . . . . . . . . . . . . . . . . . . . . . . Machines Sabotaged . | . . . . . . . . . . . . . . . . . . . . . . . . . . . . Overloaded Fab Kills . | . . . . . . . . . . . . . . . . . . . . . . . . . . . . Hacking | -11 -10 -10 -10 -9 -8 -7 -7 -7 -7 -6 -6 -6 -6 -6 -6 -6 -5 -5 -5 -4 -4 -4 -4 -3 -3 -2 -1 --------- Run | Jun Mat Min Exi Min Mat Fac Low Low Dat Pro Fac Was Fac Low Low Zio Pro Fac Ext Fac Upp Upp War Pro Res Res Acc Machines Accessed 70 | . 7 1 2 1 5 7 . . 4 . 1 . 9 . . . . 2 4 4 . . 13 . 2 2 6 Terminals 36 | . 5 . . 1 4 2 . . . . . . 8 . . . . 1 4 3 . . . . 2 1 5 Fabricators 1 | . . . . . . 1 . . . . . . . . . . . . . . . . . . . . . Repair Stations 2 | . 1 . . . . 1 . . . . . . . . . . . . . . . . . . . . . Recycling Units 6 | . 1 . . . 1 2 . . . . 1 . . . . . . . . . . . . . . . 1 Scanalyzers . | . . . . . . . . . . . . . . . . . . . . . . . . . . . . Garrison Access 5 | . . . . . . 1 . . . . . . 1 . . . . 1 . 1 . . . . . 1 . Total Hacks 147 | . 14 1 2 2 10 16 . . 30 . 1 . 13 . . . . 2 6 10 . . 23 . 4 4 9 Successful 104 | . 8 1 2 1 6 14 . . 30 . 1 . 5 . . . . 2 4 2 . . 23 . 2 2 1 Failed 43 | . 6 . . 1 4 2 . . . . . . 8 . . . . . 2 8 . . . . 2 2 8 Catastrophic 16 | . 1 . . . 1 . . . . . . . 8 . . . . . . 2 . . . . . . 4 Database Lockouts . | . . . . . . . . . . . . . . . . . . . . . . . . . . . . Manual 57 | . 12 . 1 . 9 4 . . . . . . 11 . . . . . . 8 . . 2 . 1 2 7 Terminals 69 | . 10 . . 2 9 9 . . . . . . 11 . . . . 1 6 8 . . . . 4 2 7 Fabricators 2 | . . . . . . 2 . . . . . . . . . . . . . . . . . . . . . Repair Stations 5 | . 3 . . . . 2 . . . . . . . . . . . . . . . . . . . . . Recycling Units 7 | . 1 . . . 1 2 . . . . 1 . . . . . . . . . . . . . . . 2 Scanalyzers . | . . . . . . . . . . . . . . . . . . . . . . . . . . . . Garrison Access 8 | . . . . . . 1 . . . . . . 2 . . . . 1 . 2 . . . . . 2 . Terminal Hacks 87 | . 5 1 2 1 6 6 . . 30 . . . 4 . . . . 1 4 1 . . 23 . 2 1 . Record 29 | . . . 1 . . . . . 11 . . . . . . . . . . . . . 17 . . . . Part Schematic 11 | . . . . . . 1 . . 10 . . . . . . . . . . . . . . . . . . Robot Schematic 6 | . . . . . . . . . 6 . . . . . . . . . . . . . . . . . . Robot Analysis 2 | . 2 . . . . . . . . . . . . . . . . . . . . . . . . . . Prototype ID Bank 7 | . . . . . . . . . 3 . . . . . . . . . . . . . 4 . . . . Open Door 5 | . . 1 . . . . . . . . . . . . . . . 1 1 . . . 2 . . . . Level Access Points 3 | . . . . . 1 . . . . . . . . . . . . . . . . . . . 1 1 . Branch Access Points 8 | . 3 . . . 1 1 . . . . . . 1 . . . . . . 1 . . . . 1 . . Unreport Threat 7 | . . . . . 3 1 . . . . . . 3 . . . . . . . . . . . . . . Locate Traps 1 | . . . . . . 1 . . . . . . . . . . . . . . . . . . . . . Disarm Traps 1 | . . . . . . 1 . . . . . . . . . . . . . . . . . . . . . Reprogram Traps 2 | . . . . . . . . . . . . . . . . . . . 2 . . . . . . . . Investigation Status 1 | . . . . 1 . . . . . . . . . . . . . . . . . . . . . . . Recall Investigation 1 | . . . . . . 1 . . . . . . . . . . . . . . . . . . . . . Zone Layout 2 | . . . . . 1 . . . . . . . . . . . . . 1 . . . . . . . . Derelict Proto ID Bank 1 | . . . 1 . . . . . . . . . . . . . . . . . . . . . . . . Fabricator Hacks 2 | . . . . . . 2 . . . . . . . . . . . . . . . . . . . . . Load Schematic 1 | . . . . . . 1 . . . . . . . . . . . . . . . . . . . . . Build 1 | . . . . . . 1 . . . . . . . . . . . . . . . . . . . . . Repair Station Hacks 4 | . 2 . . . . 2 . . . . . . . . . . . . . . . . . . . . . Scan Component 2 | . 1 . . . . 1 . . . . . . . . . . . . . . . . . . . . . Repair 2 | . 1 . . . . 1 . . . . . . . . . . . . . . . . . . . . . Recycling Unit Hacks 5 | . 1 . . . . 2 . . . . 1 . . . . . . . . . . . . . . . 1 Retrieve Components 5 | . 1 . . . . 2 . . . . 1 . . . . . . . . . . . . . . . 1 Scanalyzer . | . . . . . . . . . . . . . . . . . . . . . . . . . . . . Garrison Access Hacks 5 | . . . . . . 1 . . . . . . 1 . . . . 1 . 1 . . . . . 1 . Seal Access 5 | . . . . . . 1 . . . . . . 1 . . . . 1 . 1 . . . . . 1 . Unauthorized Hacks 1 | . . . . . . 1 . . . . . . . . . . . . . . . . . . . . . Terminals 1 | . . . . . . 1 . . . . . . . . . . . . . . . . . . . . . Botnet 1 | . . . . . . 1 . . . . . . . . . . . . . . . . . . . . . Fabricators . | . . . . . . . . . . . . . . . . . . . . . . . . . . . . Repair Stations . | . . . . . . . . . . . . . . . . . . . . . . . . . . . . Recycling Units . | . . . . . . . . . . . . . . . . . . . . . . . . . . . . Scanalyzers . | . . . . . . . . . . . . . . . . . . . . . . . . . . . . Garrison Access . | . . . . . . . . . . . . . . . . . . . . . . . . . . . . Data Cores Recovered 3 | . 2 . . . . . . . . . . . . . . . . . . 1 . . . . . . . Used 1 | . 1 . . . . . . . . . . . . . . . . . . . . . . . . . . Hacking Detections 36 | . 7 . . . 5 5 . . . . . . 7 . . . . . 2 2 . . . . 2 1 5 Full Trace Events 2 | . 1 . . . . 1 . . . . . . . . . . . . . . . . . . . . . Feedback Events . | . . . . . . . . . . . . . . . . . . . . . . . . . . . . Feedback Blocked . | . . . . . . . . . . . . . . . . . . . . . . . . . . . . Robot Schematics Acquired 8 | . . . . . . . . . 6 . . . . . . 2 . . . . . . . . . . . Robots Built . | . . . . . . . . . . . . . . . . . . . . . . . . . . . . Authchips . | . . . . . . . . . . . . . . . . . . . . . . . . . . . . Time . | . . . . . . . . . . . . . . . . . . . . . . . . . . . . Total Robot Build Rating . | . . . . . . . . . . . . . . . . . . . . . . . . . . . . Part Schematics Acquired 24 | . . . . . . 1 . . 10 . . . . . . 13 . . . . . . . . . . . Parts Built 2 | . . . . . . 2 . . . . . . . . . . . . . . . . . . . . . Authchips . | . . . . . . . . . . . . . . . . . . . . . . . . . . . . Time 53 | . . . . . . 53 . . . . . . . . . . . . . . . . . . . . . Total Part Build Rating 12 | . . . . . . 12 . . . . . . . . . . . . . . . . . . . . . Parts Repaired 2 | . 1 . . . . 1 . . . . . . . . . . . . . . . . . . . . . Time 52 | . 26 . . . . 26 . . . . . . . . . . . . . . . . . . . . . Parts Recycled . | . . . . . . . . . . . . . . . . . . . . . . . . . . . . Recycled Matter . | . . . . . . . . . . . . . . . . . . . . . . . . . . . . Retrieved Matter . | . . . . . . . . . . . . . . . . . . . . . . . . . . . . Retrieved Components 15 | . 5 . . . . 8 . . . . 2 . . . . . . . . . . . . . . . . Parts Scanalyzed . | . . . . . . . . . . . . . . . . . . . . . . . . . . . . Part Schematics Acquired . | . . . . . . . . . . . . . . . . . . . . . . . . . . . . Parts Damaged . | . . . . . . . . . . . . . . . . . . . . . . . . . . . . Bothacking | -11 -10 -10 -10 -9 -8 -7 -7 -7 -7 -6 -6 -6 -6 -6 -6 -6 -5 -5 -5 -4 -4 -4 -4 -3 -3 -2 -1 ------------ Run | Jun Mat Min Exi Min Mat Fac Low Low Dat Pro Fac Was Fac Low Low Zio Pro Fac Ext Fac Upp Upp War Pro Res Res Acc Used RIF Installer . | . . . . . . . . . . . . . . . . . . . . . . . . . . . . Robots Hacked . | . . . . . . . . . . . . . . . . . . . . . . . . . . . . Non-combat . | . . . . . . . . . . . . . . . . . . . . . . . . . . . . Combat . | . . . . . . . . . . . . . . . . . . . . . . . . . . . . Robot Hacks Applied . | . . . . . . . . . . . . . . . . . . . . . . . . . . . . Relay Couplers Released . | . . . . . . . . . . . . . . . . . . . . . . . . . . . . Fabnet Peak Effective % . | . . . . . . . . . . . . . . . . . . . . . . . . . . . . Robots Rewired 13 | . . . . . . 1 . . . . . . . . . . . . 7 . . . 5 . . . . Allies Hacked . | . . . . . . . . . . . . . . . . . . . . . . . . . . . . Hacks Repelled . | . . . . . . . . . . . . . . . . . . . . . . . . . . . . Allies | -11 -10 -10 -10 -9 -8 -7 -7 -7 -7 -6 -6 -6 -6 -6 -6 -6 -5 -5 -5 -4 -4 -4 -4 -3 -3 -2 -1 -------- Run | Jun Mat Min Exi Min Mat Fac Low Low Dat Pro Fac Was Fac Low Low Zio Pro Fac Ext Fac Upp Upp War Pro Res Res Acc Total Allies 17 | . . . . . . 1 . . . 1 . 1 . . . . . . 9 . . . 5 . . . . Largest Group 5 | . . . . . . 1 . . . 1 . 1 . . . . . . 5 . . . 5 2 . . . Highest-Rated Group 266 | . . . . . . 12 . . . 96 . 31 . . . . . . 138 . . . 266 98 . . . Highest-Rated Ally 96 | . . . . . . 12 . . . 96 . 31 . . . . . . 31 . . . 56 49 . . . Total Orders 14 | . . . . . . . . . . . 5 . 2 . . . . . . . . . 7 . . . . STAY 5 | . . . . . . . . . . . . . . . . . . . . . . . 5 . . . . FOLLOW 4 | . . . . . . . . . . . 2 . . . . . . . . . . . 2 . . . . EXPLORE 5 | . . . . . . . . . . . 3 . 2 . . . . . . . . . . . . . . Ally Attacks 128 | . . . . 4 . 16 . . . 7 . . . . . . . . 56 . . . 33 9 . . 3 Total Damage 4760 | . . . . 161 . 737 . . . 299 . . . . . . . . 1098 . . . 1758 526 . . 181 Kills 28 | . . . . 2 . 7 . . . . . . . . . . . . 8 . . . 10 . . . 1 Allies Corrupted . | . . . . . . . . . . . . . . . . . . . . . . . . . . . . Allies Melted 1 | . . . . . . . . . . . . . . . . . . . . . . . . 1 . . . Turrets Deployed 3 | . . . . 1 . 1 . . . . . . . . . . . . . . . . . . . . 1 Intel | -11 -10 -10 -10 -9 -8 -7 -7 -7 -7 -6 -6 -6 -6 -6 -6 -6 -5 -5 -5 -4 -4 -4 -4 -3 -3 -2 -1 ------- Run | Jun Mat Min Exi Min Mat Fac Low Low Dat Pro Fac Was Fac Low Low Zio Pro Fac Ext Fac Upp Upp War Pro Res Res Acc Robot Analysis Total 2 | . 2 . . . . . . . . . . . . . . . . . . . . . . . . . . Derelict Logs Recovered 7 | . . 1 . . . . . 1 . . . . . 1 . 1 . . . . 2 1 . . . . . Drone Launches 4 | . . . . . . . . . . . 2 . 2 . . . . . . . . . . . . . . Drone Recoveries 1 | . . . . . . . . . . . . . 1 . . . . . . . . . . . . . . Exploration | -11 -10 -10 -10 -9 -8 -7 -7 -7 -7 -6 -6 -6 -6 -6 -6 -6 -5 -5 -5 -4 -4 -4 -4 -3 -3 -2 -1 ------------- Run | Jun Mat Min Exi Min Mat Fac Low Low Dat Pro Fac Was Fac Low Low Zio Pro Fac Ext Fac Upp Upp War Pro Res Res Acc Turns Passed 13960 | 92 1307 330 674 567 1672 2018 680 461 143 606 365 27 824 70 88 318 107 231 446 379 140 55 458 269 257 142 1234 Spaces Moved 14833 | 21 643 192 418 247 649 1013 383 251 88 344 233 104 1851 262 336 1042 307 461 456 861 366 230 977 454 234 272 2138 Core 268 | . . . . . . . . . . . . . . . . . . . 5 . . . 8 . . . 255 Treads 4282 | . 555 192 418 247 649 1013 383 251 88 344 142 . . . . . . . . . . . . . . . . Legs 132 | 21 88 . . . . . . . . . . . . . . . . . . . . . . . . . 23 Wheels . | . . . . . . . . . . . . . . . . . . . . . . . . . . . . Hover . | . . . . . . . . . . . . . . . . . . . . . . . . . . . . Flight 10151 | . . . . . . . . . . . 91 104 1851 262 336 1042 307 461 451 861 366 230 969 454 234 272 1860 Fastest Speed 23 | 120 120 160 160 160 160 160 160 160 160 160 24 24 23 24 26 26 26 25 27 24 24 24 24 24 26 25 27 Average Speed 66 | 120 154 160 160 160 165 160 160 160 160 160 109 24 23 25 26 26 26 25 29 25 24 24 27 29 34 25 33 Slowest Speed 400 | 120 160 160 160 160 240 160 160 160 160 165 165 24 97 26 26 96 26 27 300 29 24 24 400 37 120 32 350 Overloaded Moves . | . . . . . . . . . . . . . . . . . . . . . . . . . . . . Propulsion Burnouts . | . . . . . . . . . . . . . . . . . . . . . . . . . . . . Robots Hopped 22 | . . . . 1 . . . . . . 1 . 8 . . . 1 1 7 1 . . . . . . 2 Cave-ins Triggered 1 | . . . . . . . . . . . . . . . . . . . . . . . . . 1 . . Exploration Rate (%) 47 | 3 91 26 63 45 42 28 59 36 72 54 6 78 59 45 50 85 51 10 56 27 64 52 95 62 9 14 42 Regions Visited 27 Branch Regions 16 Pre-discovered Areas 6 | . . 2 1 . . . . 1 1 . . . . . . . . . . . . 1 . . . . . Known Exits Taken 7 | . 1 . . . 1 1 . . . . . . 1 . . . . . . 1 . . . . 1 1 . Unknown Exits Taken 18 | 1 . 1 1 1 . . 1 1 1 1 . . . 1 1 1 1 1 1 . 1 1 1 1 . . . Scrap Searched 13 | . . 1 . 1 . . 1 2 . 1 . . . . 1 1 . . . . 3 1 . 1 . . . Spaces Dug 230 | . . . . . 7 12 . . . . 5 . 42 . . . 7 24 . 35 . . . . 40 9 49 Terrain Destroyed 529 | 4 9 . . 24 153 61 9 4 . 4 5 . 42 . . . 7 25 1 35 . . . . 40 9 97 Melee 211 | . . . . . 2 11 . . . . 5 . 42 . . . 7 24 . 35 . . . . 27 9 49 Projectile 57 | . . . . . 13 10 2 2 . 4 . . . . . . . 1 1 . . . . . 13 . 11 AOE 261 | 4 9 . . 24 138 40 7 2 . . . . . . . . . . . . . . . . . . 37 Terrain Rammed . | . . . . . . . . . . . . . . . . . . . . . . . . . . . . Walls Destroyed . | . . . . . . . . . . . . . . . . . . . . . . . . . . . . Machines Disabled . | . . . . . . . . . . . . . . . . . . . . . . . . . . . . Actions | -11 -10 -10 -10 -9 -8 -7 -7 -7 -7 -6 -6 -6 -6 -6 -6 -6 -5 -5 -5 -4 -4 -4 -4 -3 -3 -2 -1 --------- Run | Jun Mat Min Exi Min Mat Fac Low Low Dat Pro Fac Was Fac Low Low Zio Pro Fac Ext Fac Upp Upp War Pro Res Res Acc Total 17857 | 62 852 214 425 406 1046 1310 428 289 91 382 312 105 2125 263 335 1085 318 516 734 953 417 229 1162 591 360 324 2523 Wait 1665 | 20 67 4 . 147 128 139 17 4 . 16 12 . 175 . . 22 6 19 220 33 52 . 152 134 83 24 191 Move 14762 | 20 642 191 417 244 648 1012 382 250 87 343 231 103 1834 261 335 1041 304 458 441 858 365 229 976 453 232 271 2134 Hop 22 | . . . . 1 . . . . . . 1 . 8 . . . 1 1 7 1 . . . . . . 2 Pick Up 114 | 2 17 5 3 . 18 19 2 6 . 1 10 . 7 . . 6 . . . 3 . . 3 . 1 4 7 Fast Attach 92 | 1 7 2 1 . 5 3 . 2 1 . 4 1 10 . . 4 . 5 . 9 . . 11 . 4 5 17 Attach 71 | . 5 1 . . 21 5 3 2 1 4 10 . 2 . . . . . . 2 . . . 2 2 3 8 Detach 14 | . 1 . . . 1 . . . . . 3 . . . . . . . . . . . . 2 1 1 5 Swap 66 | 1 10 4 . 1 13 19 4 . . . 1 . 3 1 . 3 . . . 2 . . . . 1 . 3 Drop 162 | . 21 6 4 1 14 22 1 3 2 . 12 1 15 1 . 8 . 4 . 6 . . 14 . 1 4 22 Fire 513 | 18 82 1 . 12 196 69 19 22 . 18 22 . 3 . . . . 3 21 . . . . . 6 . 21 Melee 263 | . . . . . 2 19 . . . . 6 . 50 . . 1 7 26 1 39 . . . . 28 12 72 Ram 38 | . . . . . . . . . . . . . . . . . . . . . . . . . . . 38 Kick . | . . . . . . . . . . . . . . . . . . . . . . . . . . . . Crush . | . . . . . . . . . . . . . . . . . . . . . . . . . . . . Escape Stasis 27 | . . . . . . . . . . . . . 18 . . . . . 8 . . . . . 1 . . Rewire 45 | . . . . . . 3 . . . . . . . . . . . . 36 . . . 6 . . . . Trap 3 | . . . . . . . . . . . . . . . . . . . . . . . . . . . 3 Miscellaneous . | . . . . . . . . . . . . . . . . . . . . . . . . . . . . Route ------- -11/Junkyard -10/Materials (discovered 5 exits: [*Mat x3] / *Min / [Sub]) -10/Mines -10/Exiles -9/Mines -8/Materials (discovered 3 exits: *Fac x3) -7/Factory (discovered 3 exits: Sto / *Low x2) -7/Lower Caves -7/Lower Caves -7/Data Miner -6/Proximity Caves -6/Factory -6/Waste -6/Factory (discovered 5 exits: *Fac x3 / *Low x2) -6/Lower Caves -6/Lower Caves -6/Zion -5/Proximity Caves -5/Factory -5/Extension -4/Factory (discovered 5 exits: *Res x2 / *Upp x2 / Arm) -4/Upper Caves -4/Upper Caves -4/Warlord -3/Proximity Caves -3/Research (discovered 5 exits: *Res x3 / Tes x2) -2/Research (discovered 3 exits: *Acc x3) -1/Access History --------- Turn | Location | Event 1 | -11/Junkyard | Discovered new exit (range 3) 93 | -11/Junkyard | Entered Materials 302 | -10/Materials | Build established: Mutant 379 | -10/Materials | Discovered new exit (range 8) 500 | -10/Materials | Discovered new exit (range 16) 540 | -10/Materials | Identified exit to Mines 707 | -10/Materials | Core integrity fell below 50% 786 | -10/Materials | Discovered new exit (range 15) 964 | -10/Materials | Repaired Lrg. Storage Unit 1069 | -10/Materials | Core integrity fell below 20% 1206 | -10/Materials | Discovered new exit (range 5) 1400 | -10/Materials | Entered Mines 1444 | -10/Mines | Learned location of Recycling (-7) 1477 | -10/Mines | Joined a pair of Derelicts in attacking an 0b10 outpost 1537 | -10/Mines | Learned location of Storage (-7) 1593 | -10/Mines | Met a Derelict shopkeep closing up shop 1651 | -10/Mines | Deemed a non-threat by the Exiles lab entrance 1651 | -10/Mines | Discovered new exit (range 5) 1730 | -10/Mines | Entered Exiles 1775 | -10/Exiles | Met 8R-AWN 1798 | -10/Exiles | Met EX-HEX 1860 | -10/Exiles | Met EX-DEC 1916 | -10/Exiles | Discovered new exit (range 12) 2034 | -10/Exiles | Learned location of Zion (-6) 2061 | -10/Exiles | Met EX-BIN 2167 | -10/Exiles | Aligned with FarCom system 2168 | -10/Exiles | Given EX-Vault access code 2205 | -10/Exiles | Opened EX-Vault 2222 | -10/Exiles | Found Deploy-a-Sentry 2224 | -10/Exiles | Found Deploy-a-Sentry 2227 | -10/Exiles | Found Deploy-a-Sentry 2257 | -10/Exiles | Warned to stay clear of 0b10 Research branches 2404 | -10/Exiles | Left Exiles lab with Deploy-a-Sentry 2404 | -10/Exiles | Entered Mines 2405 | -9/Mines | Assembled infested the area 2410 | -9/Mines | Assisted by a Guerilla fighting off Assembled 2783 | -9/Mines | DAS Turret deployed 2966 | -9/Mines | Discovered new exit (range 3) 2971 | -9/Mines | Entered Materials 2971 | -8/Materials | Evolved 4 slots: Propulsion x1, Utility x3 3259 | -8/Materials | Build established: Hacker-Mutant 3330 | -8/Materials | Lost 3 parts (2n1w) 3546 | -8/Materials | Identified exit to Factory 4064 | -8/Materials | Lost 6 parts (1p2n1u2w) 4393 | -8/Materials | System corruption reached 10% 4643 | -8/Materials | Entered Factory 4643 | -7/Factory | Evolved 2 slots: Propulsion x1, Utility x1 4796 | -7/Factory | DAS Turret deployed 5196 | -7/Factory | Repaired Lgt. Treads 5674 | -7/Factory | Identified exit to Storage 5674 | -7/Factory | Identified exit to Lower Caves 6191 | -7/Factory | Cargo convoy interrupted 6309 | -7/Factory | Fabricated Hvy. Treads (x2) 6661 | -7/Factory | Entered Lower Caves 6838 | -7/Lower Caves | Attracted the attention of an 0b10 checkpoint 7134 | -7/Lower Caves | Discovered new exit (range 15) 7341 | -7/Lower Caves | Entered another Lower Caves area 7652 | -7/Lower Caves | Attacked by a delusional Derelict stockpiling parts 7672 | -7/Lower Caves | Attracted the attention of an 0b10 checkpoint 7691 | -7/Lower Caves | System corruption reached 10% 7735 | -7/Lower Caves | Discovered new exit (range 9) 7802 | -7/Lower Caves | Entered Data Miner 7802 | -7/Data Miner | Discovered new exit (range 6) 7833 | -7/Data Miner | Met Data Miner 7879 | -7/Data Miner | Learned location of Section 7 (-2) 7879 | -7/Data Miner | Acquired the access code to Warlord's prototype stash 7893 | -7/Data Miner | Received God Mode back door access code from Data Miner 7945 | -7/Data Miner | Entered Proximity Caves 8001 | -6/Proximity Caves | Spotted B-75 Beast 8003 | -6/Proximity Caves | Escorted by Enhanced Grunt 8509 | -6/Proximity Caves | Attracted the attention of an 0b10 checkpoint 8525 | -6/Proximity Caves | Core integrity fell below 50% 8532 | -6/Proximity Caves | Discovered new exit (range 16) 8551 | -6/Proximity Caves | System corruption reached 30% 8551 | -6/Proximity Caves | Entered Factory 8551 | -6/Factory | Evolved 2 slots: Propulsion x1, Utility x1 8579 | -6/Factory | Lost 6 parts (1p3n2w) 8916 | -6/Factory | Sucked down chute 8916 | -6/Factory | Entered Waste 8917 | -6/Waste | Met a frightened Derelict 8924 | -6/Waste | Spotted C-40 Crusher 8926 | -6/Waste | Spotted C-40 Crusher 8927 | -6/Waste | Spotted C-40 Crusher 8929 | -6/Waste | Spotted C-40 Crusher 8931 | -6/Waste | EMP discharged 8936 | -6/Waste | Spotted C-40 Crusher 8938 | -6/Waste | Spotted C-40 Crusher 8941 | -6/Waste | Discovered new exit (range 11) 8943 | -6/Waste | Entered Factory 9147 | -6/Factory | Build established: Hacker-Sprinter 9171 | -6/Factory | Discovered new exit (range 11) 9359 | -6/Factory | Discovered new exit (range 11) 9360 | -6/Factory | Identified exit to Lower Caves 9500 | -6/Factory | Discovered new exit (range 10) 9767 | -6/Factory | Entered Lower Caves 9817 | -6/Lower Caves | Learned Factory trap positions 9820 | -6/Lower Caves | Ambushed by wild Derelicts 9834 | -6/Lower Caves | Discovered new exit (range 12) 9837 | -6/Lower Caves | Entered another Lower Caves area 9902 | -6/Lower Caves | Discovered new exit (range 13) 9925 | -6/Lower Caves | Entered Zion 9935 | -6/Zion | Discovered new exit (range 15) 9966 | -6/Zion | Learned Factory stockpile data 9969 | -6/Zion | System corruption cleaned by Quarantine Array 10030 | -6/Zion | Visited the Megawrench Repair Shop 10034 | -6/Zion | Megawrench repaired 8 parts 10058 | -6/Zion | Found Prototype Special Weapon 10058 | -6/Zion | Identified RU-N14's Throwing Claymores 10103 | -6/Zion | Rebuked by Imprinter 10243 | -6/Zion | Entered Proximity Caves 10245 | -5/Proximity Caves | Spotted B-75 Beast 10335 | -5/Proximity Caves | Attracted the attention of an 0b10 checkpoint 10346 | -5/Proximity Caves | Discovered new exit (range 9) 10350 | -5/Proximity Caves | Entered Factory 10350 | -5/Factory | Evolved 2 slots: Propulsion x1, Utility x1 10351 | -5/Factory | Loaded intel: 76 trap records 10387 | -5/Factory | Discovered new exit (range 10) 10581 | -5/Factory | Entered Extension 10603 | -5/Extension | Rescued a captive Derelict 10613 | -5/Extension | Rescued a captive Derelict 10640 | -5/Extension | Build established: Hacker-Scout 11017 | -5/Extension | Spotted B-75 Beast 11024 | -5/Extension | Spotted B-75 Beast 11026 | -5/Extension | Discovered new exit (range 3) 11027 | -5/Extension | Entered Factory 11027 | -4/Factory | Evolved 2 slots: Propulsion x1, Utility x1 11286 | -4/Factory | Discovered new exit (range 9) 11291 | -4/Factory | Identified exit to Upper Caves 11291 | -4/Factory | Identified exit to Armory 11312 | -4/Factory | Discovered new exit (range 15) 11406 | -4/Factory | Entered Upper Caves 11482 | -4/Upper Caves | Attracted the attention of an 0b10 checkpoint 11482 | -4/Upper Caves | Spotted B-86 Titan 11501 | -4/Upper Caves | Learned Research stockpile data 11503 | -4/Upper Caves | Learned Research interactive machine intel 11545 | -4/Upper Caves | Discovered new exit (range 6) 11546 | -4/Upper Caves | Entered another Upper Caves area 11583 | -4/Upper Caves | Spotted B-86 Titan 11600 | -4/Upper Caves | Discovered new exit (range 8) 11600 | -4/Upper Caves | Learned location of Quarantine (-2) 11601 | -4/Upper Caves | Entered Warlord 11612 | -4/Warlord | Discovered new exit (range 12) 11726 | -4/Warlord | Received a Watcher feed algorithm from an ecstatic Tinkerer 11747 | -4/Warlord | Met Warlord 11749 | -4/Warlord | Opened Warlord's prototype stash 11751 | -4/Warlord | Found Prototype Hackware 11751 | -4/Warlord | Identified System Mapper 11772 | -4/Warlord | Warlord's base attacked by MAIN.C 11855 | -4/Warlord | Found Prototype Energy Cannon 11855 | -4/Warlord | Identified Vortex Driver 11857 | -4/Warlord | Found Prototype Energy Gun 11857 | -4/Warlord | Identified Vortex Rail 11965 | -4/Warlord | Opened side exit 12059 | -4/Warlord | Entered Proximity Caves 12059 | -3/Proximity Caves | Accompanied by 2 allies 12104 | -3/Proximity Caves | Spotted B-86 Titan 12117 | -3/Proximity Caves | Build established: Wizard-Sprinter 12297 | -3/Proximity Caves | Attracted the attention of an 0b10 checkpoint 12326 | -3/Proximity Caves | Discovered new exit (range 11) 12328 | -3/Proximity Caves | Entered Research 12328 | -3/Research | Evolved 2 slots: Power x1, Utility x1 12330 | -3/Research | Loaded intel: 41 interactive machine locations 12384 | -3/Research | Crushed by falling debris 12385 | -3/Research | System corruption reached 10% 12415 | -3/Research | Lost 4 parts (1p2u1w) 12537 | -3/Research | Identified exit to Testing 12537 | -3/Research | Identified exit to Research 12585 | -3/Research | Entered another Research area 12585 | -2/Research | Warlord forces began assault on 0b10 12585 | -2/Research | Evolved 2 slots: Propulsion x1, Utility x1 12595 | -2/Research | Found Prototype Reactor 12612 | -2/Research | Identified exit to Access 12634 | -2/Research | Met up with Warlord 12695 | -2/Research | Research machine network offline 12713 | -2/Research | Spotted B-90 Cyclops 12727 | -2/Research | Entered Access 12727 | -1/Access | Evolved 2 slots: Propulsion x1, Utility x1 12848 | -1/Access | Garrison activated, responded to threat 12977 | -1/Access | Spotted B-99 Colossus 13117 | -1/Access | Build established: Hacker-Ninja 13583 | -1/Access | Spotted B-99 Colossus 13640 | -1/Access | DAS Turret deployed 13657 | -1/Access | System corruption reached 10% 13745 | -1/Access | Lost 17 parts (3p5n5u4w) 13780 | -1/Access | Core integrity fell below 50% 13917 | -1/Access | Core integrity fell below 20% 13958 | -1/Access | System corruption reached 30% 13961 | -1/Access | Destroyed by S-43 Plague with Heavy Machine Gun Last Messages --------------- 13951_ Slammed into B-99 Colossus. 13952_ S-43 Plague destroyed. 13952_ Knocked back. 13952_ Penetrated by Slug. 13952_ Slug penetrates S-43 Plague. 13952_ Slammed into B-99 Colossus. 13953_ Broken Hvy. Armored Exoskeleton destroyed. 13953_ System corrupted by crushing effect (+3). 13954_ Slammed into B-99 Colossus. 13955_ Knocked back. 13955_ Slug penetrates Terminal. 13956_ Slammed into B-99 Colossus. 13957_ Destabilizing: System corrupted (+2). 13958_ Slammed into B-99 Colossus. 13959_ Knocked back. 13959_ Penetrated by Slug. 13959_ Critical hit (Destroy). 13959_ Hvy. Armored Exoskeleton destroyed. 13959_ Penetrated by Slug. 13960_ Slammed into B-99 Colossus. Map ----- +----------------------------------------------------+ | ???## ##???## = # ##### """"" | | ???## ##???## # ############## | | ??### ###??## # ####### | | ??### ###??## # ####### | | ??## ##??## # ##" # | | ??## T" !##??## """ """ + | | ??## "" ##??## """S""" # ### # | | ??## ##??## # #### ## | | ??## ! ]##??## + #### ## | | ??## # ####??#####+##+#########/############## ## | | ??## # ####??##### #### ######## ## | | ??## # ##???????## #### ##????## ## | | ??## # ##???????## #### ##????## ## | | ??## # ##????##?## #### ##????## ## | | ??## # ##?????;### #### "" ##????## ## | | ??## # ????? #### """" ##???### | | ??## ## ????? + """" ##???###### | | ??## ## ????? # """" ##???##*! | | ??## ## ????? sss#s """" ####### | | ??## ## ????? "" # Y"""" !####### | | ??## ## """ # "" [%+=!s " | | ??## ####+### "T # "" !####### | | ??## # # "" ####+####/########## | | ??## # # "" #### #### #####???###### | | ??## # # %#### #?## ##??????###### | | ??## + + %@BB##%#### ##???######### | | ??## # # s%BB;* %### ############## | | ??## # * # %%;%=%% | | ??## ######## ###=[ ################## | | ??## ######## ### ################### | | ??## ##????## ### #?????????????????# | | ??## ######## ### #?????????????????# | | ??## ######## ! ### #?????????????????# | | ??## ### #?????????????????# | | ??## ## ### #?????????????????# | | ??## ## ### #?????????????????# | | ??###### ## #?# #?????????????????# | | ??###### ## #?# #?????????????????? | | ??????## ## #?# #?????????????????? | | ??????## ## s#?? ??????????????????? | | ??????## ## ??? ??????????????????? | | ??????## ###### ## ??? ??????????????????? | | ?????###+###### ##? ??? ??????????????????? | | ?????## ???? ##???????? ??????????????????? | | ?????## #######????????#??????????????????? | | ?????## #######???????????????????????????? | | ?????###########????????????????????????????????? | | ?????###########????????????????????????????????? | | | | | +----------------------------------------------------+ Best States ------------- Heat Dissipation 52 Energy Generation 39 Energy Capacity 280 Matter Stores 300 Matter Capacity 300 Sight Range 22 Terrain Scan Density 10 ECM Strength 2 Armor Coverage 450 Core Shielding 20 Propulsion Shielding 33 Weapon Shielding 66 Evasion (%) 75 Recoil Reduction 4 Offensive Hacking 64 Defensive Hacking 10 Item Schematics ----------------- Hvy. Treads | -7/Factory | Hacked Combat Drone Bay | -7/Data Miner | Free Lgt. Regenerative Plating | -7/Data Miner | Free Biomechanical Wings | -7/Data Miner | Free Thermal Defense Suite | -7/Data Miner | Free Force Rifle | -7/Data Miner | Free Antigrav System | -7/Data Miner | Free Imp. Transmission Jammer | -7/Data Miner | Free Enh. Gauss Cannon | -7/Data Miner | Free Wave Gun | -7/Data Miner | Free Imp. System Guard | -7/Data Miner | Free Mak. Cloaking Device | -6/Zion | Archive Imp. Dynamic Insulation System | -6/Zion | Archive Fission Core | -6/Zion | Archive Imp. Focal Shield | -6/Zion | Archive Adv. Signal Interpreter | -6/Zion | Archive Adv. Focal Shield | -6/Zion | Archive 0b10 Decoder Chip [Looter] | -6/Zion | Archive Neutrino Core | -6/Zion | Archive Hvy. Beamcaster | -6/Zion | Archive Plasma Flamer | -6/Zion | Archive Field Propulsion Drive | -6/Zion | Archive Hvy. Pick | -6/Zion | Archive Railgun | -6/Zion | Archive Robot Schematics ------------------ H-66 Slayer | -7/Data Miner | Free A-15 Conveyor | -7/Data Miner | Free B-48 Gladiator | -7/Data Miner | Free R-10 Processor | -7/Data Miner | Free L-41 Fighter | -7/Data Miner | Free X-72 Disruptor | -7/Data Miner | Free E-15 Imp | -6/Zion | Archive H-88 Terminator | -6/Zion | Archive Fabricated ------------ Hvy. Treads | x2 | -7/Factory Alien Tech Used ----------------- None Achievements -------------- None Challenges ------------ None Game ------ Seed MachineAlertSaw Manual? 0 Play Time 07:28:38 Cumulative 86.3 hours Start 2023.08.15 @ 19:08:18 End 2023.08.18 @ 08:17:52 Sessions 3 Manual Loads 0 Difficulty Rogue Special Mode None Game No. 43 Rogue 43 Adventurer 0 Explorer 0 Win Type - Total 0 Types 0/0/0/0/0/0/0/0/0 Lore% 38 Gallery% 37 Achievement% 35 Wizard Run 0 Options --------- ASCII 0 Keyboard 0 Movement Mouse Keybinds 0 Fullscreen 1 Font 16/SmallcapsGlow Map View 82x54 Tactical HUD 1 Map Filters NONE Filters NONE Steam 1 RUN: b0fdebbb-b077-473f-a7b4-1acab56df78f